bitfinex/quotes_ETHUSD_20250215
["timestamp","ask_amount","ask_price","bid_price","bid_amount"]
[1739582186252,3.72129406,2720.3,2719.8,4.49565]
[1739582186253,3.67607,2720.3,2719.8,4.49565]
[1739582186665,3.72129406,2720.3,2719.8,0.819]
[1739582187357,3.72129406,2720.3,2719.5,6.7810078]
[1739582187550,3.72129406,2720.3,2719.5,4.49605]
[1739582187989,3.67662,2719.9,2719.3,4.49632]
[1739582188173,0.04522406,2719.8,2719.4,3.67728]
[1739582188377,5.27,2719.8,2719.4,3.67728]
[1739582188701,5.27,2719.8,2719.5,4.49605]
[1739582188869,5.27,2719.8,2719.7,3.67687]
[1739582189279,5.27,2719.8,2719.6,3.677]
[1739582189601,5.27,2719.8,2719.6,3.67693]
[1739582190686,5.27,2719.8,2719.5,3.9229278]
[1739582191191,5.27,2719.8,2719.6,3.67693]
[1739582191395,5.27,2719.8,2719.6,7.35383]
[1739582191692,5.27,2719.8,2719.7,3.67687]
[1739582193197,5.27,2719.8,2719.6,3.67701]
[1739582196582,5.27,2719.8,2719.5,3.9229278]
[1739582196780,5.27,2719.8,2719.6,7.35381]
[1739582197414,5.27,2719.8,2719.6,3.67688]
[1739582197711,5.27,2719.8,2719.5,3.9229278]
[1739582198008,5.27,2719.8,2719.5,7.49612]
[1739582198611,0.04522406,2719.7,2719.3,0.819]
[1739582198811,3.6769,2719.7,2719.3,3.67737]
[1739582199012,3.6769,2719.7,2719.2,3.1039278]
[1739582199316,3.6769,2719.7,2719.2,6.7814578]
[1739582199503,3.6769,2719.7,2719.3,3.6774]
[1739582200206,3.6769,2719.7,2719.2,3.1039278]
[1739582200405,8.94677,2719.8,2719.3,3.67735]
[1739582201088,9.39878802,2719.8,2719.3,3.67735]
[1739582201318,8.94677,2719.8,2719.3,3.67735]
[1739582202699,3.67691,2719.7,2719.2,6.7814378]
[1739582203408,7.35388,2719.7,2719.2,6.7814378]
[1739582203621,3.67701,2719.6,2719.2,6.7814378]
[1739582204046,3.67691,2719.7,2719.1,0.8095]
[1739582204200,4.43268,2719.6,2719.1,4.48718]
[1739582205208,0.7556,2719.6,2719.1,4.4871]
[1739582205408,4.43261,2719.6,2719.1,4.4871]
[1739582205822,9.70261,2719.6,2719.1,4.4871]
[1739582206624,6.0256,2719.6,2719.2,3.1039278]
[1739582207001,9.70261,2719.6,2719.2,3.1039278]
[1739582207317,6.0256,2719.6,2719.2,3.1039278]
[1739582207518,5.27,2719.6,2719.2,6.7814578]
[1739582207822,5.27,2719.6,2719.3,3.67733]
[1739582208612,5.27,2719.6,2719.2,7.84055358]
[1739582209194,5.27,2719.6,2719.3,3.67739]
[1739582209443,5.27,2719.6,2719.2,7.84055358]
[1739582209610,5.27,2719.6,2719.2,6.7814578]
[1739582210540,5.27,2719.6,2719.3,3.67736]
[1739582211609,5.27,2719.6,2719.2,6.7814378]
[1739582218017,5.27,2719.6,2719.2,3.1039278]
[1739582218018,8.94708,2719.6,2719.2,3.1039278]
[1739582218352,3.67722,2719.5,2719.1,0.1]
[1739582218750,0.7755,2719.4,2719.1,0.1]
[1739582219264,0.7755,2719.4,2719.1,3.77767]
[1739582219564,0.7755,2719.4,2719.1,0.1]
[1739582219862,6.0455,2719.6,2719.2,3.67753]
[1739582221145,6.0455,2719.6,2719.3,3.6774]
[1739582221836,6.0455,2719.6,2719.2,3.1039278]
[1739582222039,9.72256,2719.6,2719.2,3.1039278]
[1739582222219,3.67714,2719.5,2719.2,3.1039278]
[1739582222854,3.67714,2719.5,2719.1,3.77766]
[1739582222855,3.67714,2719.5,2719.1,0.1]
[1739582223351,0.04522406,2719.5,2719.1,0.1]
[1739582223554,3.72237406,2719.5,2719.1,0.1]
[1739582224719,0.04522406,2719.5,2719.1,0.1]
[1739582225050,4.45305,2719.2,2719.1,0.1]
[1739582225346,9.72305,2719.2,2719.1,0.1]
[1739582227946,6.0455,2719.2,2719.1,0.1]
[1739582228149,5.27,2719.2,2719.1,0.1]
[1739582232951,5.27,2719.2,2719.1,0.9262]
[1739582233252,5.27,2719.2,2719.1,4.60388]
[1739582234884,5.27,2719.2,2719.1,0.1]
[1739582235370,8.94755,2719.2,2719.1,0.1]
[1739582235520,9.72555,2719.2,2719.1,0.1]
[1739582236662,5.27,2719.2,2719.1,0.1]
[1739582238665,9.72555,2719.2,2719.1,0.1]
[1739582242355,6.048,2719.2,2719.1,0.1]
[1739582242964,9.72555,2719.2,2719.1,0.1]
[1739582249469,9.72555,2719.2,2718.0,3.9340278]
[1739582249470,3.67847,2718.6,2718.0,3.9340278]
[1739582249651,3.67847,2718.6,2718.1,3.0]
[1739582249652,0.8143,2718.5,2718.1,3.0]
[1739582250045,4.4928,2718.5,2718.1,3.0]
[1739582250246,0.8143,2718.5,2718.1,3.0]
[1739582251334,0.8143,2718.5,2718.1,6.67901]
[1739582252166,0.8143,2718.5,2718.0,0.8301]
[1739582252167,3.67865,2718.4,2718.0,0.8301]
[1739582252334,0.04522406,2718.3,2718.0,0.8301]
[1739582253467,0.8224,2718.2,2717.7,3.1039278]
[1739582253664,0.8224,2718.2,2717.5,0.8186]
[1739582253665,3.67934,2717.9,2717.5,0.8186]
[1739582253834,3.72469406,2717.8,2717.4,3.1039278]
[1739582254034,4.54709406,2717.8,2717.4,3.1039278]
[1739582254247,6.13762406,2717.8,2717.3,0.8186]
[1739582254442,9.77194,2717.8,2717.3,0.8186]
[1739582254646,3.67958,2717.7,2717.3,0.8186]
[1739582255584,6.0924,2717.8,2717.3,4.4987]
[1739582256489,5.27,2717.8,2717.5,3.6798]
[1739582257375,5.27,2717.8,2717.4,3.1039278]
[1739582258089,8.99476406,2717.8,2717.3,0.8186]
[1739582258289,3.67986,2717.5,2717.1,3.9275278]
[1739582258567,4.50226,2717.5,2717.1,3.9275278]
[1739582258768,3.72522406,2717.4,2717.1,0.005]
[1739582259137,0.04522406,2717.4,2717.1,0.005]
[1739582259368,5.31522406,2717.4,2717.1,0.005]
[1739582260169,5.27,2717.4,2717.1,0.005]
[1739582260383,5.27,2717.4,2717.1,3.68527]
[1739582261035,5.27,2717.4,2717.2,4.43765]
[1739582262369,5.27,2717.4,2717.3,3.68012]
[1739582263451,5.27,2717.4,2717.2,4.43765]
[1739582263777,5.27,2717.4,2717.2,8.11782]
[1739582263975,5.27,2717.4,2717.1,0.005]
[1739582264181,5.27,2717.4,2717.2,3.68017]
[1739582265849,5.27,2717.4,2717.3,3.68012]
[1739582267286,5.27,2717.4,2717.3,4.43762]
[1739582270176,5.88415,2718.8,2717.3,4.43762]
[1739582270177,5.27,2718.2,2718.1,3.67904]
[1739582270377,0.7911,2718.7,2718.3,3.67868]
[1739582270876,0.7911,2718.7,2718.1,3.67896]
[1739582271063,0.7911,2718.7,2718.3,3.67876]
[1739582271284,4.46938,2718.7,2718.1,3.67896]
[1739582271587,0.7911,2718.7,2718.2,3.67887]
[1739582272093,4.4694,2718.7,2718.1,7.35791]
[1739582272858,4.4694,2718.7,2718.1,3.67895]
[1739582273258,3.67836,2718.6,2718.1,3.67895]
[1739582274195,0.7911,2718.7,2718.1,3.67892]
[1739582274391,0.7911,2718.7,2718.2,3.67888]
[1739582274596,4.46933,2718.7,2718.2,3.67888]
[1739582275092,9.69077968,2718.8,2717.8,3.1039278]
[1739582275093,3.67862,2718.5,2717.8,3.1039278]
[1739582275284,3.67884,2718.3,2717.7,3.67944]
[1739582275485,7.35773,2718.3,2717.7,3.67944]
[1739582275868,0.8087,2718.5,2717.6,3.67962]
[1739582276073,4.4876,2718.2,2717.6,3.67962]
[1739582277400,0.04522406,2718.1,2717.6,3.67962]
[1739582277692,4.4876,2718.2,2717.6,3.67962]
[1739582277858,8.16661,2718.2,2717.6,3.67962]
[1739582278061,0.04522406,2718.1,2717.6,3.67962]
[1739582280094,5.31522406,2718.1,2717.6,3.67962]
[1739582280399,5.31522406,2718.1,2717.5,3.0]
[1739582280561,3.67952,2717.8,2717.2,4.50513]
[1739582280761,3.72481406,2717.7,2717.2,8.18524]
[1739582281162,3.67946,2717.8,2717.3,3.68005]
[1739582281382,7.35902,2717.8,2717.3,3.68005]
[1739582281588,0.04522406,2717.7,2717.3,3.68005]
[1739582282018,3.67946,2717.8,2717.3,3.68005]
[1739582282200,3.67971,2717.6,2717.1,3.68538]
[1739582282496,0.04522406,2717.5,2717.1,3.68538]
[1739582282701,5.27,2717.5,2717.2,3.68025]
[1739582283300,5.27,2717.5,2717.1,3.68538]
[1739582283868,5.27,2717.5,2717.1,7.36569]
[1739582284201,5.27,2717.5,2717.1,3.68531]
[1739582284401,5.27,2717.5,2717.2,3.68018]
[1739582289292,8.94985,2717.5,2717.1,0.005]
[1739582289492,0.04522406,2717.4,2717.1,0.005]
[1739582289696,8.94985,2717.5,2717.1,0.005]
[1739582290007,0.8003,2717.3,2717.1,0.005]
[1739582292111,6.0703,2717.3,2717.1,0.005]
[1739582292332,5.27,2717.3,2717.2,3.68025]
[1739582297323,5.27,2717.3,2717.1,0.005]
[1739582297624,6.0703,2717.3,2717.1,0.005]
[1739582297826,6.0703,2717.3,2717.1,3.68526]
[1739582298124,5.27,2717.3,2717.1,3.68526]
[1739582299229,5.27,2717.3,2717.2,3.68025]
[1739582301600,5.27,2717.3,2717.1,0.005]
[1739582301793,0.8003,2717.2,2717.1,0.005]
[1739582305323,8.99547406,2717.2,2717.1,0.005]
[1739582305529,9.77305,2717.2,2717.1,0.005]
[1739582309903,11.98205,2717.2,2717.1,0.005]
[1739582311052,0.8228,2716.3,2715.8,3.68214]
[1739582311258,9.77435,2716.3,2715.8,3.68213]
[1739582311406,6.0928,2716.3,2715.8,3.68213]
[1739582311607,6.0928,2716.3,2715.9,4.49794]
[1739582312247,5.27,2716.3,2715.9,4.947734]
[1739582312454,5.27,2716.3,2716.1,3.68172]
[1739582312956,3.0,2717.6,2716.6,3.68096]
[1739582312957,4.503,2717.3,2716.6,3.68096]
[1739582313151,3.68041,2717.1,2716.7,0.816]
[1739582313439,3.68066,2716.9,2716.5,0.816]
[1739582313864,4.50346,2716.9,2716.5,0.816]
[1739582314061,3.68107,2716.6,2716.3,0.816]
[1739582314354,3.68136,2716.4,2716.0,0.816]
[1739582314520,3.68136,2716.4,2715.8,6.7860078]
[1739582314521,3.68136,2716.4,2715.8,7.6020078]
[1739582314726,4.50429,2716.3,2715.8,7.6020078]
[1739582315345,0.8228,2716.3,2715.8,7.6020078]
[1739582315545,0.266,2716.7,2715.9,3.682]
[1739582315546,0.8228,2716.5,2715.9,3.682]
[1739582315879,3.68141,2716.4,2715.8,7.6020078]
[1739582316942,4.5041,2716.5,2715.9,3.68194]
[1739582317142,3.68135,2716.4,2715.8,7.6020078]
[1739582318352,3.72677406,2716.3,2715.8,0.816]
[1739582318558,3.68163,2716.2,2715.8,0.816]
[1739582318741,0.04522406,2716.1,2715.8,0.816]
[1739582319754,5.27,2716.2,2715.8,0.816]
[1739582319925,5.31522406,2716.2,2715.8,0.816]
[1739582320358,8.99684406,2716.2,2715.8,0.816]
[1739582320560,5.27,2716.2,2715.8,0.816]
[1739582320858,5.31522406,2716.2,2715.8,0.816]
[1739582321756,5.27,2716.2,2715.9,3.6819]
[1739582324327,5.27,2716.2,2715.8,4.49802]
[1739582324638,5.27,2716.2,2715.9,3.68193]
[1739582325042,5.27,2716.2,2716.1,4.48464]
[1739582328464,0.8122,2717.0,2716.7,3.68081]
[1739582328763,10.49123669,2717.2,2716.6,4.48396]
[1739582328959,0.04522406,2717.1,2716.6,4.48396]
[1739582329131,0.8122,2716.9,2716.4,3.6813]
[1739582329333,0.04522406,2716.8,2716.3,4.48429]
[1739582330194,3.72602406,2716.8,2716.3,3.68139]
[1739582330385,4.49322,2716.7,2716.1,7.36336]
[1739582330661,0.04522406,2716.6,2716.1,7.36333]
[1739582330862,0.04522406,2716.6,2716.1,3.68166]
[1739582331069,3.72639406,2716.6,2716.0,0.8029]
[1739582331446,3.72639406,2716.6,2716.0,3.68184]
[1739582331647,4.49342,2716.5,2715.9,3.68188]
[1739582331849,0.04522406,2716.4,2715.9,7.36378]
[1739582332044,4.49342,2716.5,2716.0,3.68186]
[1739582332371,0.8122,2716.5,2716.1,7.3633]
[1739582332573,0.8122,2716.5,2716.1,3.68165]
[1739582332737,0.8122,2716.5,2715.9,3.68195]
[1739582332942,3.68102,2716.7,2715.5,3.68247]
[1739582332943,3.68147,2716.3,2715.5,3.68247]
[1739582333269,0.8325,2716.0,2715.5,3.68246]
[1739582333446,0.04522406,2715.9,2715.5,3.68246]
[1739582334763,0.04522406,2715.9,2715.3,0.9615218]
[1739582334961,3.72727406,2715.9,2715.4,3.68267]
[1739582335185,0.8325,2716.0,2715.4,3.68267]
[1739582335536,0.8325,2716.0,2715.6,3.68234]
[1739582335874,0.8325,2716.0,2715.7,3.68221]
[1739582336174,8.95155,2716.3,2716.1,3.68164]
[1739582336175,5.27,2716.3,2716.1,3.68164]
[1739582336376,0.7516,2716.4,2716.1,3.68164]
[1739582336553,5.27,2716.6,2716.2,3.68161]
[1739582336964,6.01770139,2716.6,2716.2,3.68161]
[1739582337368,0.79292545,2716.6,2716.1,3.68174]
[1739582337966,4.47400545,2716.6,2716.1,3.68174]
[1739582338266,0.79292545,2716.6,2716.1,3.68174]
[1739582338462,0.79292545,2716.6,2716.0,3.6818]
[1739582338666,4.47402545,2716.6,2716.0,7.36357]
[1739582339389,4.47402545,2716.6,2716.0,3.68177]
[1739582339739,4.47402545,2716.6,2716.0,7.36356]
[1739582339971,4.47402545,2716.6,2716.0,3.68177]
[1739582340544,4.47402545,2716.6,2716.0,7.36357]
[1739582340839,4.47402545,2716.6,2716.0,3.68177]
[1739582341073,3.68132,2716.5,2715.9,0.7569]
[1739582341339,0.7516,2716.3,2715.9,4.43884]
[1739582341539,0.04522406,2716.2,2715.9,0.7569]
[1739582341741,0.04522406,2716.2,2715.6,3.68235]
[1739582341742,0.04522406,2716.2,2715.6,0.7569]
[1739582341942,4.43342,2716.1,2715.6,3.6823]
[1739582342161,0.04522406,2716.0,2715.4,4.43951]
[1739582342359,3.68202,2715.9,2715.4,3.68261]
[1739582342561,0.04522406,2715.8,2715.4,3.68261]
[1739582342778,4.43342,2716.1,2715.6,3.68242]
[1739582342983,5.27,2716.5,2715.6,3.68242]
[1739582342984,1.0186,2716.4,2715.6,1.493403]
[1739582343279,1.0186,2716.4,2715.7,3.68229]
[1739582343482,3.68149,2716.3,2715.8,3.68211]
[1739582343664,1.0186,2716.4,2715.7,3.68229]
[1739582343864,1.0186,2716.4,2715.9,7.36385]
[1739582344273,1.0186,2716.4,2716.0,3.6818]
[1739582344772,1.0186,2716.4,2715.9,3.6819]
[1739582346053,5.27,2716.5,2716.3,3.68135]
[1739582346386,5.27,2716.5,2716.4,3.68134]
[1739582347171,0.7516,2716.9,2716.5,3.68115]
[1739582347470,0.7516,2716.9,2716.5,7.36228]
[1739582347661,0.7516,2716.9,2716.5,3.68113]
[1739582347862,0.7516,2716.9,2716.5,7.36226]
[1739582348288,0.7516,2716.9,2716.6,3.68104]
[1739582349194,0.04522406,2716.8,2716.4,3.68131]
[1739582350586,0.04522406,2716.8,2716.4,3.43251]
[1739582351851,3.72611406,2716.8,2716.2,6.68151]
[1739582352048,3.68118,2716.6,2716.1,3.68163]
[1739582352277,0.04522406,2716.5,2716.1,3.68163]
[1739582352682,0.04522406,2716.5,2715.9,3.68193]
[1739582352889,3.68127,2716.5,2715.9,3.68193]
[1739582353062,3.72649406,2716.5,2715.9,3.68193]
[1739582353266,0.7567,2716.4,2715.9,3.68193]
[1739582353487,3.68156,2716.3,2715.8,3.1039278]
[1739582353687,3.72678406,2716.3,2715.8,3.1039278]
[1739582353879,3.72678406,2716.3,2715.8,6.7860278]
[1739582354074,0.04522406,2716.3,2715.8,6.7860278]
[1739582354397,4.43807,2716.4,2715.9,3.68199]
[1739582355192,0.7567,2716.4,2715.9,3.68199]
[1739582355666,3.68148,2716.3,2715.8,3.1039278]
[1739582357491,3.68161,2716.2,2715.7,3.68216]
[1739582357670,0.7567,2716.1,2715.7,3.68216]
[1739582357871,0.7567,2716.1,2715.7,7.36436]
[1739582359500,0.7567,2716.1,2715.7,3.68216]
[1739582359804,0.7567,2716.1,2715.7,7.36435]
[1739582359975,0.7567,2716.1,2715.7,3.68216]
[1739582360179,3.94834,2716.4,2715.9,3.68197]
[1739582360180,0.7567,2716.3,2715.9,3.68197]
[1739582360378,0.7567,2716.3,2715.8,3.68203]
[1739582360783,4.43819,2716.3,2715.8,3.68203]
[1739582361798,4.48341406,2716.3,2715.8,3.68203]
[1739582365688,3.68162,2716.2,2715.7,6.68221]
[1739582365876,3.72704406,2716.1,2715.7,3.0]
[1739582366234,0.8006,2716.0,2715.6,3.68232]
[1739582366444,0.04522406,2715.9,2715.4,6.68262]
[1739582366596,3.72730406,2715.9,2715.4,3.68257]
[1739582366778,3.72730406,2715.9,2715.5,3.68255]
[1739582367541,3.72730406,2715.9,2715.3,3.8304418]
[1739582367836,0.8006,2715.8,2715.3,6.8305218]
[1739582368141,0.04522406,2715.7,2715.3,3.8305218]
[1739582368282,3.68245,2715.6,2715.3,0.1477218]
[1739582370033,4.48283,2715.8,2715.3,3.8305418]
[1739582370416,8.16508,2715.8,2715.3,0.1477218]
[1739582370734,4.48283,2715.8,2715.3,0.1477218]
[1739582370895,3.68236,2715.7,2715.3,0.1477218]
[1739582371100,4.48283,2715.8,2715.3,0.1477218]
[1739582371788,3.68232,2715.7,2715.3,0.1477218]
[1739582372804,4.48283,2715.8,2715.3,0.1477218]
[1739582373197,3.68229,2715.7,2715.3,0.1477218]
[1739582373513,0.8006,2715.8,2715.3,3.8304618]
[1739582373707,4.48278,2715.8,2715.3,3.8304618]
[1739582373907,4.48278,2715.8,2715.3,0.1477218]
[1739582373908,3.68229,2715.7,2715.3,0.1477218]
[1739582375586,7.36467,2715.7,2715.3,0.1477218]
[1739582376362,3.68229,2715.7,2715.3,0.1477218]
[1739582377166,0.8006,2715.8,2715.3,0.1477218]
[1739582377459,4.48284,2715.8,2715.3,0.1477218]
[1739582377804,3.68229,2715.7,2715.3,0.1477218]
[1739582378839,3.68244,2715.6,2715.3,0.1477218]
[1739582380238,3.68269,2715.4,2715.3,0.1477218]
[1739582381543,3.72791406,2715.4,2715.3,0.1477218]
[1739582382238,3.68269,2715.4,2715.3,0.1477218]
[1739582382739,1.0628,2715.5,2715.3,0.1477218]
[1739582382944,4.74536,2715.5,2715.3,0.1477218]
[1739582383317,1.0628,2715.5,2715.3,0.1477218]
[1739582383646,4.74543,2715.5,2715.3,0.1477218]
[1739582384345,0.73373007,2715.4,2715.3,0.1477218]
[1739582385140,0.267,2715.5,2715.3,0.1477218]
[1739582385444,4.43224639,2715.6,2715.3,0.1477218]
[1739582386629,0.7958,2715.7,2715.3,3.8305318]
[1739582386834,0.7958,2715.7,2715.3,3.8304818]
[1739582387234,0.7958,2715.7,2715.3,0.1477218]
[1739582387440,4.52337406,2715.7,2715.3,0.1477218]
[1739582387636,8.20576406,2715.7,2715.3,0.1477218]
[1739582387842,8.16054,2715.7,2715.3,0.1477218]
[1739582388051,3.68259,2715.5,2715.3,0.1477218]
[1739582388217,0.04522406,2715.4,2715.3,0.1477218]
[1739582388424,5.2185561,2715.7,2715.3,0.1477218]
[1739582388623,3.72767406,2715.6,2715.3,0.1477218]
[1739582389151,5.2185561,2715.7,2715.3,0.1477218]
[1739582389359,5.2185561,2715.7,2715.3,3.8304218]
[1739582389360,1.5361861,2715.7,2715.3,3.8304218]
[1739582389522,1.5361861,2715.7,2715.3,8.3069618]
[1739582389854,1.5361861,2715.7,2715.3,4.6242218]
[1739582390252,1.5361861,2715.7,2715.3,8.3069818]
[1739582390426,1.5361861,2715.7,2715.3,4.6242218]
[1739582391326,0.7958,2716.0,2715.5,3.68256]
[1739582391539,0.7958,2716.0,2715.4,3.68269]
[1739582391748,0.7958,2716.0,2715.5,3.68256]
[1739582392118,5.22633552,2716.0,2715.5,3.68256]
[1739582392551,1.54443552,2716.0,2715.6,3.68235]
[1739582392757,0.38707933,2717.1,2716.0,3.68181]
[1739582392758,6.1,2716.4,2716.0,3.68181]
[1739582392956,5.833,2716.4,2716.1,3.68166]
[1739582393156,5.833,2716.4,2716.1,4.47546]
[1739582394045,5.833,2716.4,2716.3,3.68147]
[1739582394220,5.833,2716.4,2716.3,4.49497]
[1739582395254,3.68068,2716.9,2716.3,4.49497]
[1739582397945,4.42149164,2716.9,2716.3,4.49497]
[1739582398274,3.68089,2716.8,2716.3,0.8135]
[1739582398484,4.45797,2716.6,2716.1,3.68174]
[1739582398675,0.04522406,2716.5,2716.0,8.1771]
[1739582398873,0.04522406,2716.5,2716.0,0.8135]
[1739582399082,0.04522406,2716.5,2715.8,3.68214]
[1739582399083,3.68135,2716.4,2715.8,3.68208]
[1739582399262,3.72671406,2716.3,2715.8,3.68208]
[1739582399781,3.68121,2716.5,2715.9,3.682]
[1739582401774,3.68121,2716.5,2715.9,3.682]
[1739582401978,3.68121,2716.5,2716.0,3.68188]
[1739582402174,0.7769,2716.6,2716.0,3.68188]
[1739582402405,3.68114,2716.6,2716.1,0.8135]
[1739582402897,0.267,2716.7,2716.3,3.68136]
[1739582403097,0.31222406,2716.7,2716.2,3.68154]
[1739582403301,0.31222406,2716.7,2716.2,3.6816]
[1739582403699,0.267,2716.7,2716.4,3.68121]
[1739582403902,0.267,2716.7,2716.2,3.68155]
[1739582404204,0.267,2716.7,2716.3,4.13465637]
[1739582405809,0.74081164,2716.9,2716.4,3.68126]
[1739582405985,4.42148164,2716.9,2716.4,3.68126]
[1739582408406,3.68083,2716.8,2716.3,3.68144]
[1739582409216,0.74081164,2716.9,2716.1,7.5990578]
[1739582409376,3.68091,2716.8,2716.2,3.68161]
[1739582409926,3.68091,2716.8,2716.3,3.68147]
[1739582410095,0.825,2716.6,2716.1,4.49513]
[1739582410295,0.04522406,2716.5,2716.2,3.68152]
[1739582410496,0.825,2716.6,2716.2,4.499185]
[1739582411114,0.825,2716.6,2716.3,3.68141]
[1739582411329,0.825,2716.8,2716.3,3.68141]
[1739582411652,0.825,2716.8,2716.4,3.6813]
[1739582412906,0.04522406,2716.7,2716.2,4.499275]
[1739582413106,3.72617406,2716.7,2716.2,4.499275]
[1739582413308,3.68095,2716.7,2716.2,8.180815]
[1739582413608,3.68095,2716.7,2716.2,4.499205]
[1739582413810,0.04522406,2716.6,2716.2,8.180705]
[1739582414037,3.68095,2716.7,2716.2,8.180705]
[1739582414434,0.04522406,2716.6,2716.2,4.499165]
[1739582414727,3.68095,2716.7,2716.2,8.180695]
[1739582414932,3.68095,2716.7,2716.3,3.68145]
[1739582415331,0.825,2716.8,2716.4,3.68132]
[1739582415933,4.5058,2716.8,2716.4,3.68132]
[1739582416134,3.68094,2716.7,2716.2,3.68151]
[1739582416502,0.825,2716.8,2716.3,3.68139]
[1739582417006,4.5058,2716.8,2716.3,3.68139]
[1739582417317,0.825,2716.8,2716.3,3.68139]
[1739582417729,0.825,2716.8,2716.4,3.68132]
[1739582418551,0.825,2716.8,2716.2,3.68161]
[1739582418763,3.72617406,2716.7,2716.2,3.68161]
[1739582420999,3.68107,2716.6,2716.0,3.68184]
[1739582421204,3.68141,2716.4,2715.9,3.68196]
[1739582421405,0.04522406,2716.3,2715.8,6.7859478]
[1739582421609,0.825,2716.2,2715.8,10.4680078]
[1739582422218,0.825,2716.2,2715.8,6.7859478]
[1739582422459,0.825,2716.2,2716.0,3.68184]
[1739582423036,0.825,2715.8,2715.4,4.47801]
[1739582423340,0.87022406,2715.8,2715.4,4.47801]
[1739582423634,0.87022406,2715.8,2715.3,0.1477218]
[1739582423838,0.87022406,2715.8,2715.3,3.8305318]
[1739582424238,0.825,2715.8,2715.4,3.6826]
[1739582425832,4.50717,2715.8,2715.3,0.1477218]
[1739582426544,0.825,2715.8,2715.3,3.8304718]
[1739582426744,0.825,2715.8,2715.3,7.5132218]
[1739582427632,0.825,2715.8,2715.4,3.68266]
[1739582428208,4.48483,2716.1,2715.5,3.68246]
[1739582428408,0.803,2716.1,2715.7,3.68224]
[1739582428621,1.069,2716.3,2715.8,3.68214]
[1739582428825,4.75051,2716.3,2715.8,3.68214]
[1739582429011,5.48679169,2716.3,2715.8,3.68214]
[1739582429213,3.68162,2716.2,2715.7,3.68224]
[1739582429548,3.68178,2716.1,2715.6,4.44289]
[1739582429724,5.48679169,2716.3,2715.6,0.7605]
[1739582430050,5.48679169,2716.3,2715.7,3.68227]
[1739582430206,0.04522406,2716.2,2715.7,3.68227]
[1739582430548,5.48679169,2716.3,2715.7,3.68227]
[1739582430723,3.68169,2716.2,2715.7,3.68227]
[1739582430908,3.72691406,2716.2,2715.7,3.68227]
[1739582431313,3.68182,2716.1,2715.6,0.7605]
[1739582431534,0.04522406,2716.0,2715.6,0.7605]
[1739582431734,3.72719406,2716.0,2715.6,0.7605]
[1739582431933,3.72719406,2716.0,2715.5,6.7864178]
[1739582432399,3.72719406,2716.0,2715.5,3.1039278]
[1739582432400,3.68223,2715.8,2715.5,3.1039278]
[1739582432643,3.6823,2715.7,2715.3,0.1477218]
[1739582432825,3.74490986,2715.7,2715.3,0.1477218]
[1739582433227,0.06260986,2715.7,2715.3,3.8305318]
[1739582433428,4.48504,2715.9,2715.3,0.1477218]
[1739582433636,0.06260986,2715.6,2715.3,0.1477218]
[1739582433947,3.6825,2715.6,2715.3,0.1477218]
[1739582434151,4.57175986,2715.5,2715.3,0.1477218]
[1739582434369,3.68269,2715.4,2715.3,0.1477218]
[1739582434721,3.74482787,2715.4,2715.3,0.1477218]
[1739582438367,3.79005193,2715.4,2715.3,0.1477218]
[1739582438780,3.74482787,2715.4,2715.3,0.1477218]
[1739582439443,0.06213787,2715.4,2715.3,0.1477218]
[1739582439638,3.74482787,2715.4,2715.3,0.1477218]
[1739582445174,0.06213787,2715.4,2715.3,0.1477218]
[1739582446248,3.74482787,2715.4,2715.3,0.1477218]
[1739582451059,0.06213787,2715.4,2715.3,0.1477218]
[1739582451400,5.32,2715.7,2715.4,3.68265]
[1739582452209,5.32,2715.7,2715.3,8.40899176]
[1739582452412,9.00229,2715.7,2715.3,4.72624176]
[1739582452905,3.68209,2715.9,2715.5,3.68254]
[1739582453107,3.68209,2715.9,2715.6,0.7864]
[1739582453768,5.23343116,2716.1,2715.6,0.7864]
[1739582453970,3.68184,2716.1,2715.6,4.46876]
[1739582454169,3.68154,2716.3,2715.8,3.68203]
[1739582454369,3.68154,2716.3,2715.8,4.797107]
[1739582455238,3.68142,2716.4,2715.9,0.7864]
[1739582455735,0.05973338,2716.3,2715.9,0.7864]
[1739582457329,0.05973338,2716.3,2715.9,4.46835]
[1739582457898,0.05973338,2716.3,2715.9,0.7864]
[1739582458793,3.74122338,2716.3,2715.9,0.7864]
[1739582460360,3.68161,2716.2,2715.8,3.0]
[1739582460505,3.68161,2716.2,2715.7,4.4686]
[1739582460823,3.68194,2716.0,2715.7,0.7864]
[1739582461409,0.05987351,2715.9,2715.6,3.0]
[1739582462164,0.05987351,2715.9,2715.6,6.68241]
[1739582462639,0.05987351,2715.9,2715.6,3.0]
[1739582463418,0.05987351,2715.9,2715.6,6.68241]
[1739582463619,3.68164,2716.2,2715.6,3.0]
[1739582463814,0.0597877,2715.8,2715.6,3.0]
[1739582464020,3.68175,2716.1,2715.5,3.1039278]
[1739582464235,0.0597877,2715.7,2715.6,6.68236]
[1739582464449,3.68164,2716.2,2715.6,6.68236]
[1739582464602,0.05981154,2715.7,2715.6,6.68232]
[1739582464943,3.72711406,2716.0,2715.6,3.0]
[1739582465149,0.05981154,2715.7,2715.6,3.0]
[1739582465311,3.72711406,2716.0,2715.6,3.0]
[1739582465513,0.05981154,2715.7,2715.6,3.0]
[1739582465730,3.72711406,2716.0,2715.6,3.0]
[1739582465936,0.05981154,2715.7,2715.6,3.0]
[1739582466136,3.72711406,2716.0,2715.6,3.0]
[1739582466359,0.05981154,2715.7,2715.6,3.0]
[1739582466548,3.68189,2716.0,2715.6,3.0]
[1739582466723,0.05981154,2715.7,2715.6,3.0]